fUSD/lending_fUSD_20250902
["ID","MTS","AMOUNT","RATE_DAILY","PERIOD"]
[383125475,1756855906084,-29.81968801,0.00025753,2]
[383125476,1756855906094,-400.0,0.00025753,2]
[383125477,1756855906105,-400.0,0.00025753,2]
[383125478,1756855906115,-474.74,0.00025753,2]
[383125479,1756855906125,-452.72,0.00025753,2]
[383125480,1756855906134,-400.0,0.00025753,2]
[383125481,1756855906144,-400.0,0.00025753,2]
[383125482,1756855906154,-400.0,0.00025753,2]
[383125483,1756855906164,-442.19,0.00025753,2]
[383125484,1756855906174,-505.69,0.00025753,2]
[383125485,1756855906185,-400.0,0.00025753,2]
[383125486,1756855906198,-400.0,0.00025753,2]
[383125487,1756855906208,-400.0,0.00025753,2]
[383125488,1756855906218,-400.0,0.00025753,2]
[383125489,1756855906228,-723.11,0.00025753,2]
[383125490,1756855906239,-400.0,0.00025753,2]
[383125491,1756855906251,-400.0,0.00025753,2]
[383125492,1756855906263,-712.72,0.00025753,2]
[383125493,1756855906274,-425.45,0.00025753,2]
[383125494,1756855906284,-400.0,0.00025753,2]
[383125495,1756855906293,-400.0,0.00025753,2]
[383125496,1756855906302,-400.0,0.00025753,2]
[383125497,1756855906312,-400.0,0.00025753,2]
[383125498,1756855906321,-525.6,0.00025753,2]
[383125499,1756855906332,-153.64662572,0.00025753,2]
[383125500,1756855906342,-400.0,0.00025753,2]
[383125501,1756855906352,-400.0,0.00025753,2]
[383125502,1756855906361,-508.38,0.00025753,2]
[383125503,1756855906370,-400.0,0.00025753,2]
[383125504,1756855906380,-400.0,0.00025753,2]
[383125505,1756855906389,-400.0,0.00025753,2]
[383125506,1756855906399,-330.50275133,0.00025753,2]
[383125507,1756855906412,-69.49724867,0.00025753,2]
[383125508,1756855906422,-400.0,0.00025753,2]
[383125509,1756855906529,-400.0,0.00025753,2]
[383125510,1756855906539,-409.06,0.00025753,2]
[383125511,1756855906552,-150.50575644,0.00025753,2]
[383125512,1756855906561,-743.93,0.00025753,2]
[383125513,1756855906570,-400.0,0.00025753,2]
[383125514,1756855906579,-590.86,0.00025753,2]
[383125515,1756855906589,-400.0,0.00025753,2]
[383125516,1756855906598,-787.81,0.00025753,2]
[383125517,1756855906608,-408.39,0.00025753,2]
[383125518,1756855906617,-563.7,0.00025753,2]
[383125519,1756855906627,-774.97,0.00025753,2]
[383125520,1756855906636,-400.0,0.00025753,2]
[383125521,1756855906647,-400.0,0.00025753,2]
[383125522,1756855906657,-400.0,0.00025753,2]
[383125523,1756855906666,-400.0,0.00025753,2]
[383125524,1756855906675,-463.36,0.00025753,2]
[383125525,1756855906685,-416.32,0.00025753,2]
[383125526,1756855906694,-400.0,0.00025753,2]
[383125527,1756855906703,-400.0,0.00025753,2]
[383125528,1756855906713,-523.64,0.00025753,2]
[383125529,1756855906722,-498.83,0.00025753,2]
[383125530,1756855906732,-400.0,0.00025753,2]
[383125531,1756855906743,-400.0,0.00025753,2]
[383125532,1756855906754,-629.6,0.00025753,2]
[383125533,1756855906765,-716.1,0.00025753,2]
[383125534,1756855906778,-663.7,0.00025753,2]
[383125535,1756855906789,-400.0,0.00025753,2]
[383125536,1756855906800,-113.84769393,0.00025753,2]
[383125537,1756855906813,-351.59230607,0.00025753,2]
[383125538,1756855906823,-594.34,0.00025753,2]
[383125539,1756855906832,-554.10872206,0.00025753,2]
[383125540,1756855906843,-1156.59127794,0.00025753,2]
[383125541,1756855906853,-400.0,0.00025753,2]
[383125542,1756855906863,-590.22,0.00025753,2]
[383125543,1756855906873,-598.87,0.00025753,2]
[383125544,1756855906882,-489.38031498,0.00025753,2]
[383125545,1756855906891,-400.0,0.00025753,2]
[383125546,1756855906900,-400.0,0.00025753,2]
[383125547,1756855906910,-400.0,0.00025753,2]
[383125548,1756855906919,-596.76,0.00025753,2]
[383125549,1756855906929,-849.99,0.00025753,2]
[383125550,1756855906939,-412.18,0.00025753,2]
[383125551,1756855906948,-400.0,0.00025753,2]
[383125552,1756855906958,-434.51,0.00025753,2]
[383125553,1756855906967,-525.69,0.00025753,2]
[383125554,1756855906976,-418.31,0.00025753,2]
[383125555,1756855906986,-400.0,0.00025753,2]
[383125556,1756855906995,-400.0,0.00025753,2]
[383125557,1756855907004,-780.79,0.00025753,2]
[383125558,1756855907013,-455.03,0.00025753,2]
[383125559,1756855907023,-405.0364145,0.00025753,2]
[383125560,1756855907032,-400.0,0.00025753,2]
[383125561,1756855907041,-400.0,0.00025753,2]
[383125562,1756855907051,-400.0,0.00025753,2]
[383125563,1756855907061,-400.0,0.00025753,2]
[383125564,1756855907070,-257.56722589,0.00025753,2]
[383125565,1756855907091,-142.43277411,0.00025753,2]
[383125566,1756855907101,-400.0,0.00025753,2]
[383125567,1756855907111,-494.62,0.00025753,2]
[383125568,1756855907120,-400.0,0.00025753,2]
[383125569,1756855907130,-400.0,0.00025753,2]
[383125570,1756855907139,-400.0,0.00025753,2]
[383125571,1756855907148,-400.0,0.00025753,2]
[383125572,1756855907158,-400.0,0.00025753,2]
[383125573,1756855907167,-727.33,0.00025753,2]
[383125574,1756855907177,-468.01,0.00025753,2]
[383125575,1756855907186,-400.0,0.00025753,2]
[383125576,1756855907196,-400.0,0.00025753,2]
[383125577,1756855907206,-400.0,0.00025753,2]
[383125578,1756855907215,-400.0,0.00025753,2]
[383125579,1756855907225,-400.0,0.00025753,2]
[383125580,1756855907234,-4811.01,0.00025753,2]
[383125581,1756855907244,-558.54,0.00025753,2]
[383125582,1756855907254,-570.44,0.00025753,2]
[383125583,1756855907263,-400.0,0.00025753,2]
[383125584,1756855907273,-873.86,0.00025753,2]
[383125585,1756855907282,-400.0,0.00025753,2]
[383125586,1756855907292,-503.67,0.00025753,2]
[383125587,1756855907301,-630.05,0.00025753,2]
[383125588,1756855907311,-400.0,0.00025753,2]
[383125589,1756855907321,-400.0,0.00025753,2]
[383125590,1756855907330,-164.30760669,0.00025753,2]
[383125591,1756855907339,-400.0,0.00025753,2]
[383125592,1756855907349,-732.95,0.00025753,2]
[383125593,1756855907358,-402.43918308,0.00025753,2]
[383125594,1756855907367,-400.0,0.00025753,2]
[383125595,1756855907377,-400.0,0.00025753,2]
[383125596,1756855907386,-400.0,0.00025753,2]
[383125597,1756855907396,-400.0,0.00025753,2]
[383125598,1756855907405,-400.0,0.00025753,2]
[383125599,1756855907415,-523.65,0.00025753,2]
[383125600,1756855907424,-400.0,0.00025753,2]
[383125601,1756855907434,-400.0,0.00025753,2]
[383125602,1756855907443,-617.24,0.00025753,2]
[383125603,1756855907453,-452.39,0.00025753,2]
[383125604,1756855907463,-400.0,0.00025753,2]
[383125605,1756855907472,-400.0,0.00025753,2]
[383125606,1756855907482,-579.63,0.00025753,2]
[383125607,1756855907491,-415.08,0.00025753,2]
[383125608,1756855907500,-441.42,0.00025753,2]
[383125609,1756855907510,-578.11,0.00025753,2]
[383125610,1756855907519,-400.0,0.00025753,2]
[383125611,1756855907529,-400.0,0.00025753,2]
[383125612,1756855907538,-464.89,0.00025753,2]
[383125613,1756855907548,-486.07,0.00025753,2]
[383125614,1756855907557,-445.8,0.00025753,2]
[383125615,1756855907567,-400.0,0.00025753,2]
[383125616,1756855907576,-400.0,0.00025753,2]
[383125617,1756855907586,-400.0,0.00025753,2]
[383125618,1756855907596,-400.0,0.00025753,2]
[383125619,1756855907605,-405.79,0.00025753,2]
[383125620,1756855907614,-469.36,0.00025753,2]
[383125621,1756855907623,-400.0,0.00025753,2]
[383125622,1756855907633,-577.08,0.00025753,2]
[383125623,1756855907642,-525.27,0.00025753,2]
[383125624,1756855907652,-400.0,0.00025753,2]
[383125625,1756855907661,-400.0,0.00025753,2]
[383125626,1756855907670,-400.0,0.00025753,2]
[383125627,1756855907680,-400.0,0.00025753,2]
[383125628,1756855907689,-928.15,0.00025753,2]
[383125629,1756855907698,-400.0,0.00025753,2]
[383125630,1756855907708,-400.0,0.00025753,2]
[383125631,1756855907718,-400.0,0.00025753,2]
[383125632,1756855907728,-488.39,0.00025753,2]
[383125633,1756855907738,-400.0,0.00025753,2]
[383125634,1756855907747,-490.64,0.00025753,2]
[383125635,1756855907757,-335.65324136,0.00025753,2]
[383125636,1756855907766,-404.84700778,0.00025753,2]
[383125637,1756855907779,-407.76,0.00025753,2]
[383125638,1756855907788,-680.71,0.00025753,2]
[383125639,1756855907798,-400.0,0.00025753,2]
[383125640,1756855907808,-400.0,0.00025753,2]
[383125641,1756855907819,-400.0,0.00025753,2]
[383125642,1756855907828,-400.0,0.00025753,2]
[383125643,1756855907838,-400.0,0.00025753,2]
[383125644,1756855907847,-771.62,0.00025753,2]
[383125645,1756855907858,-699.71,0.00025753,2]
[383125646,1756855907869,-400.0,0.00025753,2]
[383125647,1756855907878,-400.0,0.00025753,2]
[383125648,1756855907888,-400.0,0.00025753,2]
[383125649,1756855907897,-400.0,0.00025753,2]
[383125650,1756855907907,-400.0,0.00025753,2]
[383125651,1756855907916,-555.92,0.00025753,2]
[383125652,1756855907926,-501.84,0.00025753,2]
[383125653,1756855907935,-400.0,0.00025753,2]
[383125654,1756855907946,-613.23,0.00025753,2]
[383125655,1756855907955,-400.0,0.00025753,2]
[383125656,1756855907965,-400.0,0.00025753,2]
[383125657,1756855907975,-400.0,0.00025753,2]
[383125658,1756855907986,-400.0,0.00025753,2]
[383125659,1756855907996,-400.0,0.00025753,2]
[383125660,1756855908006,-595.84,0.00025753,2]
[383125661,1756855908015,-400.0,0.00025753,2]
[383125662,1756855908025,-469.15,0.00025753,2]
[383125663,1756855908034,-910.55,0.00025753,2]
[383125664,1756855908044,-400.0,0.00025753,2]
[383125665,1756855908053,-400.0,0.00025753,2]
[383125666,1756855908063,-918.89,0.00025753,2]
[383125667,1756855908072,-421.68,0.00025753,2]
[383125668,1756855908082,-430.95171094,0.00025753,2]
[383125669,1756855908091,-400.0,0.00025753,2]
[383125670,1756855908101,-400.0,0.00025753,2]
[383125671,1756855908111,-703.03,0.00025753,2]
[383125672,1756855908120,-400.0,0.00025753,2]
[383125673,1756855908131,-400.0,0.00025753,2]
[383125674,1756855908140,-400.0,0.00025753,2]
[383125675,1756855908150,-422.66,0.00025753,2]
[383125676,1756855908160,-759.55,0.00025753,2]
[383125677,1756855908170,-688.41,0.00025753,2]
[383125678,1756855908180,-400.0,0.00025753,2]
[383125679,1756855908190,-680.24,0.00025753,2]
[383125680,1756855908200,-400.0,0.00025753,2]
[383125681,1756855908209,-400.0,0.00025753,2]
[383125682,1756855908219,-505.26,0.00025753,2]
[383125683,1756855908228,-400.0,0.00025753,2]
[383125684,1756855908237,-400.0,0.00025753,2]
[383125685,1756855908247,-402.55669875,0.00025753,2]
[383125686,1756855908256,-827.22,0.00025753,2]
[383125687,1756855908266,-524.39,0.00025753,2]
[383125688,1756855908275,-613.79,0.00025753,2]
[383125689,1756855908285,-400.0,0.00025753,2]
[383125690,1756855908294,-400.0,0.00025753,2]
[383125691,1756855908304,-400.0,0.00025753,2]
[383125692,1756855908313,-400.0,0.00025753,2]
[383125693,1756855908323,-400.0,0.00025753,2]
[383125694,1756855908332,-623.95,0.00025753,2]
[383125695,1756855908341,-402.44937541,0.00025753,2]
[383125696,1756855908351,-792.57,0.00025753,2]
[383125697,1756855908361,-572.5,0.00025753,2]
[383125698,1756855908370,-400.0,0.00025753,2]
[383125699,1756855908379,-523.95,0.00025753,2]
[383125700,1756855908389,-400.0,0.00025753,2]
[383125701,1756855908399,-400.0,0.00025753,2]
[383125702,1756855908409,-400.0,0.00025753,2]
[383125703,1756855908418,-400.0,0.00025753,2]
[383125704,1756855908432,-400.0,0.00025753,2]
[383125705,1756855908452,-400.0,0.00025753,2]
[383125706,1756855908471,-400.0,0.00025753,2]
[383125707,1756855908485,-400.0,0.00025753,2]
[383125708,1756855908495,-400.0,0.00025753,2]
[383125709,1756855908505,-411.57476829,0.00025753,2]
[383125710,1756855908515,-706.33,0.00025753,2]
[383125711,1756855908524,-717.15,0.00025753,2]
[383125712,1756855908533,-404.62133709,0.00025753,2]
[383125713,1756855908543,-400.0,0.00025753,2]
[383125714,1756855908552,-617.39,0.00025753,2]
[383125715,1756855908562,-400.0,0.00025753,2]
[383125716,1756855908571,-400.0,0.00025753,2]
[383125717,1756855908580,-625.01,0.00025753,2]
[383125718,1756855908590,-620.1,0.00025753,2]
[383125719,1756855908599,-452.65,0.00025753,2]
[383125720,1756855908608,-400.0,0.00025753,2]
[383125721,1756855908618,-400.0,0.00025753,2]
[383125722,1756855908628,-436.73,0.00025753,2]
[383125723,1756855908637,-400.0,0.00025753,2]
[383125724,1756855908647,-400.0,0.00025753,2]
[383125725,1756855908656,-406.27,0.00025753,2]
[383125726,1756855908665,-629.79,0.00025753,2]
[383125727,1756855908675,-400.0,0.00025753,2]
[383125728,1756855908684,-619.92,0.00025753,2]
[383125729,1756855908694,-991.12,0.00025753,2]
[383125730,1756855908703,-400.0,0.00025753,2]
[383125731,1756855908713,-400.0,0.00025753,2]
[383125732,1756855908723,-761.93,0.00025753,2]
[383125733,1756855908732,-400.0,0.00025753,2]
[383125734,1756855908742,-400.0,0.00025753,2]
[383125735,1756855908752,-400.0,0.00025753,2]
[383125736,1756855908761,-400.0,0.00025753,2]
[383125737,1756855908771,-400.0,0.00025753,2]
[383125738,1756855908784,-400.0,0.00025753,2]
[383125739,1756855908794,-660.32,0.00025753,2]
[383125740,1756855908803,-400.0,0.00025753,2]
[383125741,1756855908812,-400.0,0.00025753,2]
[383125742,1756855908822,-1039.09,0.00025753,2]
[383125743,1756855908831,-400.0,0.00025753,2]
[383125744,1756855908841,-400.0,0.00025753,2]
[383125745,1756855908850,-828.97,0.00025753,2]
[383125746,1756855908860,-561.42,0.00025753,2]
[383125747,1756855908871,-400.0,0.00025753,2]
[383125748,1756855908880,-400.0,0.00025753,2]
[383125749,1756855908889,-703.3,0.00025753,2]
[383125750,1756855908898,-400.0,0.00025753,2]
[383125751,1756855908906,-400.0,0.00025753,2]
[383125752,1756855908915,-459.5,0.00025753,2]
[383125753,1756855908924,-770.49,0.00025753,2]
[383125754,1756855908933,-580.23,0.00025753,2]
[383125755,1756855908942,-692.28,0.00025753,2]
[383125756,1756855908950,-659.21,0.00025753,2]
[383125757,1756855908959,-400.0,0.00025753,2]
[383125758,1756855908968,-534.99,0.00025753,2]
[383125759,1756855908977,-400.0,0.00025753,2]
[383125760,1756855908987,-400.0,0.00025753,2]
[383125761,1756855908996,-400.0,0.00025753,2]
[383125762,1756855909005,-400.0,0.00025753,2]
[383125763,1756855909014,-607.87,0.00025753,2]
[383125764,1756855909022,-547.15,0.00025753,2]
[383125765,1756855909031,-400.0,0.00025753,2]
[383125766,1756855909039,-933.61,0.00025753,2]
[383125767,1756855909048,-400.0,0.00025753,2]
[383125768,1756855909058,-402.74,0.00025753,2]
[383125769,1756855909067,-556.05,0.00025753,2]
[383125770,1756855909076,-400.0,0.00025753,2]
[383125771,1756855909085,-400.0,0.00025753,2]
[383125772,1756855909093,-414.45,0.00025753,2]
[383125773,1756855909102,-215.70279517,0.00025753,2]
[383125774,1756855977787,500.0,0.00016438,2]
[383125775,1756856076888,175.04,0.00011928,2]
[383125776,1756856077093,175.04,0.0001491,2]
[383125777,1756856077318,175.04,0.00017892,2]
[383125783,1756856954318,155.7,0.00013699,2]
[383125784,1756857032157,-175.04,0.00020874,2]
[383125785,1756857032166,-500.0,0.00021918,2]
[383125786,1756857032176,-261.59,0.000221,2]
[383125787,1756857032185,-158.6,0.00022856,2]
[383125788,1756857032194,-300.0,0.00022955,2]
[383125789,1756857032203,-300.0,0.00022955,2]
[383125790,1756857032214,-1150.0,0.00022955,2]
[383125791,1756857032225,-150.0,0.00022956,2]
[383125792,1756857032235,-150.0,0.00022956,2]
[383125793,1756857032244,-150.0,0.00022956,2]
[383125794,1756857032256,-150.0,0.00022956,2]
[383125795,1756857032266,-270.29,0.00022956,2]
[383125796,1756857032275,-150.0,0.00022956,2]
[383125797,1756857032284,-150.0,0.00022956,2]
[383125798,1756857032296,-150.39949185,0.00022956,2]
[383125799,1756857032305,-150.0,0.00022956,2]
[383125800,1756857032314,-265.20144051,0.00022956,2]
[383125801,1756857032323,-150.0,0.00022956,2]
[383125802,1756857032333,-155.29361477,0.00022956,2]
[383125803,1756857032343,-150.0,0.00022956,2]
[383125804,1756857032352,-160.0,0.0002351,7]
[383125805,1756857032362,-5000.0,0.00023543,2]
[383125806,1756857032372,-328.94,0.00023719,2]
[383125807,1756857032381,-256.66,0.00023783,2]
[383125808,1756857032391,-277.35679052,0.00023833,2]
[383125809,1756857032401,-175.04,0.00023856,2]
[383125810,1756857032410,-173.27,0.00023865,2]
[383125811,1756857032419,-261.59,0.0002401,2]
[383125812,1756857032428,-150.0,0.00024232,4]
[383125813,1756857032437,-168.0,0.0002436,2]
[383125814,1756857032447,-168.0,0.00024496,2]
[383125815,1756857032456,-377.06,0.00024557,2]
[383125816,1756857032465,-2608.2778,0.00024557,2]
[383125817,1756857032475,-188.82332634,0.00024557,2]
[383125818,1756857032484,-158.6,0.00024557,2]
[383125819,1756857032494,-569.96712774,0.00024557,4]
[383125820,1756857032503,-2028.53945442,0.00024557,2]
[383125821,1756857032512,-200.0,0.000246,8]
[383125822,1756857032522,-150.46,0.00024621,2]
[383125823,1756857032531,-300.88,0.00024631,2]
[383125824,1756857032540,-160.0,0.00024642,2]
[383125825,1756857032549,-1029.4317058,0.00024656,10]
[383125826,1756857032559,-841.277,0.00024656,7]
[383125827,1756857032568,-400.0,0.00024657,2]
[383125828,1756857032578,-400.0,0.00024657,2]
[383125829,1756857032587,-400.0,0.00024657,2]
[383125830,1756857032596,-400.0,0.00024657,2]
[383125832,1756857032605,-400.0,0.00024657,2]
[383125833,1756857032621,-404.43610258,0.00024657,2]
[383125834,1756857032631,-400.0,0.00024657,2]
[383125835,1756857032641,-400.0,0.00024657,2]
[383125837,1756857032650,-400.0,0.00024657,2]
[383125839,1756857032661,-400.0,0.00024657,2]
[383125841,1756857032672,-400.0,0.00024657,2]
[383125843,1756857032683,-400.0,0.00024657,2]
[383125845,1756857032694,-400.0,0.00024657,2]
[383125847,1756857032704,-400.0,0.00024657,2]
[383125851,1756857032716,-400.0,0.00024657,2]
[383125855,1756857032726,-400.0,0.00024657,2]
[383125859,1756857032736,-400.0,0.00024657,2]
[383125863,1756857032745,-400.0,0.00024657,2]
[383125866,1756857032754,-207.15171505,0.00024657,2]
[383125868,1756857032763,-400.0,0.00024657,2]
[383125870,1756857032772,-400.0,0.00024657,2]
[383125872,1756857032781,-400.0,0.00024657,2]
[383125874,1756857032791,-407.59792554,0.00024657,2]
[383125876,1756857032800,-400.0,0.00024657,2]
[383125878,1756857032810,-400.0,0.00024657,2]
[383125879,1756857032818,-400.0,0.00024657,2]
[383125880,1756857032829,-400.0,0.00024657,2]
[383125881,1756857032839,-400.0,0.00024657,2]
[383125882,1756857032849,-400.0,0.00024657,2]
[383125883,1756857032860,-400.0,0.00024657,2]
[383125884,1756857032869,-500.0,0.00024657,2]
[383125885,1756857032884,-500.0,0.00024657,2]
[383125886,1756857032898,-500.0,0.00024657,2]
[383125887,1756857032909,-500.0,0.00024657,2]
[383125888,1756857032920,-500.0,0.00024657,2]
[383125889,1756857032929,-470.79,0.00024657,2]
[383125890,1756857033254,-400.0,0.00024657,2]
[383125891,1756857033285,-400.0,0.00024657,2]
[383125892,1756857033295,-160.82095302,0.00024657,2]
[383125893,1756857033305,-400.0,0.00024657,2]
[383125894,1756857033314,-400.0,0.00024657,2]
[383125895,1756857033324,-400.0,0.00024657,2]
[383125896,1756857033334,-400.0,0.00024657,2]
[383125897,1756857033345,-552.6,0.00024657,2]
[383125898,1756857033354,-400.0,0.00024657,2]
[383125899,1756857033364,-400.0,0.00024657,2]
[383125900,1756857033374,-400.0,0.00024657,2]
[383125901,1756857033384,-400.0,0.00024657,2]
[383125902,1756857033394,-400.0,0.00024657,2]
[383125903,1756857033403,-500.0,0.00024657,2]
[383125904,1756857033413,-500.0,0.00024657,2]
[383125905,1756857033422,-500.0,0.00024657,2]
[383125906,1756857033431,-400.0,0.00024657,2]
[383125907,1756857033440,-524.18,0.00024657,2]
[383125908,1756857033450,-400.0,0.00024657,2]
[383125909,1756857033459,-400.0,0.00024657,2]
[383125910,1756857033468,-636.13,0.00024657,2]
[383125911,1756857033478,-400.0,0.00024657,2]
[383125912,1756857033487,-400.0,0.00024657,2]
[383125913,1756857033497,-400.0,0.00024657,2]
[383125914,1756857033506,-575.95,0.00024657,2]
[383125915,1756857033515,-400.0,0.00024657,2]
[383125916,1756857033525,-1000.0,0.00024657,2]
[383125917,1756857033535,-400.0,0.00024657,2]
[383125918,1756857033544,-400.0,0.00024657,2]
[383125919,1756857033553,-459.32,0.00024657,2]
[383125920,1756857033563,-400.0,0.00024657,2]
[383125921,1756857033573,-400.0,0.00024657,2]
[383125922,1756857033582,-400.0,0.00024657,2]
[383125923,1756857033591,-400.0,0.00024657,2]
[383125924,1756857033601,-400.0,0.00024657,2]
[383125925,1756857033610,-400.0,0.00024657,2]
[383125926,1756857033620,-400.0,0.00024657,2]
[383125927,1756857033629,-400.0,0.00024657,2]
[383125928,1756857033638,-400.0,0.00024657,2]
[383125929,1756857033648,-400.0,0.00024657,2]
[383125930,1756857033657,-400.0,0.00024657,2]
[383125931,1756857033666,-400.0,0.00024657,2]
[383125932,1756857033676,-400.0,0.00024657,2]
[383125933,1756857033685,-400.0,0.00024657,2]
[383125934,1756857033694,-400.0,0.00024657,2]
[383125935,1756857033703,-400.0,0.00024657,2]
[383125936,1756857033713,-400.0,0.00024657,2]
[383125937,1756857033723,-476.13,0.00024657,2]
[383125938,1756857033732,-555.92,0.00024657,2]
[383125939,1756857033741,-667.19,0.00024657,2]
[383125940,1756857033750,-400.0,0.00024657,2]
[383125941,1756857033759,-400.0,0.00024657,2]
[383125942,1756857033768,-400.0,0.00024657,2]
[383125943,1756857033778,-400.0,0.00024657,2]
[383125944,1756857033787,-400.0,0.00024657,2]
[383125945,1756857033797,-400.0,0.00024657,2]
[383125946,1756857033806,-400.0,0.00024657,2]
[383125947,1756857033815,-400.0,0.00024657,2]
[383125948,1756857033825,-400.0,0.00024657,2]
[383125949,1756857033834,-400.0,0.00024657,2]
[383125950,1756857033844,-400.0,0.00024657,2]
[383125951,1756857033853,-400.0,0.00024657,2]
[383125952,1756857033863,-400.0,0.00024657,2]
[383125953,1756857033873,-400.0,0.00024657,2]
[383125954,1756857033882,-400.0,0.00024657,2]
[383125955,1756857033891,-400.0,0.00024657,2]
[383125956,1756857033903,-400.0,0.00024657,2]
[383125957,1756857033912,-679.5,0.00024657,2]
[383125958,1756857033922,-400.0,0.00024657,2]
[383125959,1756857033931,-400.0,0.00024657,2]
[383125960,1756857033941,-400.0,0.00024657,2]
[383125961,1756857033951,-402.2541409,0.00024657,2]
[383125962,1756857033960,-400.0,0.00024657,2]
[383125963,1756857033969,-400.0,0.00024657,2]
[383125964,1756857033978,-400.0,0.00024657,2]
[383125965,1756857033989,-721.19,0.00024657,2]
[383125966,1756857033999,-400.0,0.00024657,2]
[383125967,1756857034008,-721.19,0.00024657,2]
[383125968,1756857034018,-400.0,0.00024657,2]
[383125969,1756857034027,-721.19,0.00024657,2]
[383125970,1756857034036,-721.19,0.00024657,2]
[383125971,1756857034046,-401.13687642,0.00024657,2]
[383125972,1756857034055,-721.19,0.00024657,2]
[383125973,1756857034064,-400.0,0.00024657,2]
[383125974,1756857034073,-400.0,0.00024657,2]
[383125975,1756857034083,-400.0,0.00024657,2]
[383125976,1756857034093,-400.0,0.00024657,2]
[383125977,1756857034102,-400.0,0.00024657,2]
[383125978,1756857034112,-400.0,0.00024657,2]
[383125979,1756857034121,-126.13898379,0.00024657,2]
[383125980,1756857034147,-324.37336634,0.00024657,2]
[383125981,1756857034156,-656.51,0.00024657,2]
[383125982,1756857034165,-400.0,0.00024657,2]
[383125983,1756857034175,-400.0,0.00024657,2]
[383125984,1756857034184,-400.0,0.00024657,2]
[383125985,1756857034193,-400.0,0.00024657,2]
[383125986,1756857034202,-400.0,0.00024657,2]
[383125987,1756857034213,-400.0,0.00024657,2]
[383125988,1756857034224,-400.0,0.00024657,2]
[383125989,1756857034234,-400.0,0.00024657,2]
[383125990,1756857034243,-400.0,0.00024657,2]
[383125991,1756857034253,-523.26,0.00024657,2]
[383125992,1756857034263,-400.0,0.00024657,2]
[383125993,1756857034272,-400.0,0.00024657,2]
[383125994,1756857034283,-400.0,0.00024657,2]
[383125995,1756857034292,-400.0,0.00024657,2]
[383125996,1756857034301,-400.0,0.00024657,2]
[383125997,1756857034311,-7.22870767,0.00024657,2]
[383125998,1756857034553,-492.77129233,0.00024657,2]
[383125999,1756857034562,-543.87125006,0.00024657,2]
[383126008,1756857040467,-63.26874994,0.00024657,2]
[383126009,1756857040477,-193.02827659,0.00024657,2]
[383126010,1756857040492,-290.91099996,0.00024657,2]
[383126028,1756857082905,157.75,0.00011946,2]
[383126029,1756857083062,157.75,0.00013937,2]
[383126030,1756857083161,157.75,0.00015928,2]
[383126031,1756857083327,157.75,0.00017919,2]